bitfinex-derivatives/quotes_BTCF0:USTF0_20241117
["timestamp","ask_amount","ask_price","bid_price","bid_amount"]
[1731855562478,0.055316,90384.0,90381.0,0.055318]
[1731855562786,0.055316,90384.0,90382.0,0.055317]
[1731855562986,0.0331,90383.0,90382.0,0.055317]
[1731855565390,0.0331,90383.0,90376.0,0.82815413]
[1731855565688,0.14008245,90377.0,90376.0,0.02815413]
[1731855565877,0.055322,90376.0,90372.0,0.055323]
[1731855566078,0.055322,90375.0,90373.0,0.855323]
[1731855566290,0.0318,90374.0,90373.0,0.855323]
[1731855566495,0.16275305,90374.0,90373.0,0.8]
[1731855566683,0.0318,90374.0,90373.0,0.8]
[1731855566884,0.055325,90370.0,90367.0,0.055326]
[1731855567183,0.14008645,90370.0,90368.0,0.02969167]
[1731855567384,0.14008645,90370.0,90369.0,0.8]
[1731855567589,0.13109647,90372.0,90369.0,0.8]
[1731855567792,0.13109647,90372.0,90370.0,0.055325]
[1731855568595,0.0318,90374.0,90369.0,0.8]
[1731855568596,0.21585792,90371.0,90369.0,0.8]
[1731855568793,0.055325,90370.0,90369.0,0.8]
[1731855568984,0.087025,90370.0,90369.0,0.8]
[1731855569186,0.087025,90370.0,90368.0,0.0016594]
[1731855572392,0.08489071,90369.0,90368.0,0.0016594]
[1731855572994,0.49951934,90369.0,90368.0,0.0016594]
[1731855573701,0.83147934,90369.0,90368.0,0.0016594]
[1731855574293,0.83147934,90369.0,90354.0,0.64]
[1731855574294,0.055334,90355.0,90354.0,0.64]
[1731855574598,0.14009545,90355.0,90354.0,0.64]
[1731855575199,0.00144,90358.0,90357.0,0.055333]
[1731855575391,0.13117306,90368.0,90367.0,0.055327]
[1731855575700,0.36236926,90369.0,90367.0,0.055327]
[1731855575998,0.36092926,90369.0,90368.0,0.695326]
[1731855576202,0.50101571,90369.0,90368.0,0.695326]
[1731855576501,0.50101571,90369.0,90368.0,0.64]
[1731855578800,0.14021571,90369.0,90368.0,0.64]
[1731855580606,0.14021571,90369.0,90355.0,0.0304]
[1731855580607,0.16965216,90369.0,90364.0,0.02787495]
[1731855580795,0.16965216,90369.0,90362.0,0.05533]
[1731855581197,0.32919626,90369.0,90362.0,0.05533]
[1731855581392,0.055334,90357.0,90356.0,0.055333]
[1731855581596,0.14009545,90357.0,90356.0,0.055333]
[1731855582702,0.14203035,90357.0,90356.0,0.055333]
[1731855583203,0.14203035,90357.0,90354.0,0.64]
[1731855583204,0.08669635,90357.0,90354.0,0.64]
[1731855583412,0.055334,90355.0,90354.0,0.64]
[1731855583596,0.055334,90355.0,90354.0,0.695335]
[1731855583797,0.0572689,90355.0,90354.0,0.695335]
[1731855584509,0.0572689,90355.0,90354.0,0.64]
[1731855585809,0.13310796,90355.0,90345.0,0.0301]
[1731855586016,0.05534,90346.0,90345.0,0.08544]
[1731855586199,0.05534,90346.0,90345.0,0.72544]
[1731855586707,0.05534,90346.0,90345.0,0.08544]
[1731855586910,0.0572749,90346.0,90345.0,0.11317288]
[1731855588110,0.0019349,90346.0,90345.0,0.11317288]
[1731855589407,0.0019349,90346.0,90345.0,0.75317288]
[1731855589806,0.0572749,90346.0,90345.0,0.75317288]
[1731855591408,0.0019349,90346.0,90345.0,0.75317288]
[1731855598011,0.36224,90364.0,90345.0,1.18035676]
[1731855598012,0.13122559,90359.0,90345.0,1.18035676]
[1731855598214,0.19750697,90369.0,90345.0,1.18035676]
[1731855598215,0.13122559,90367.0,90352.0,0.3608]
[1731855598412,0.13122559,90368.0,90353.0,0.04298243]
[1731855598611,0.13122559,90368.0,90367.0,0.055327]
[1731855598916,0.00012926,90369.0,90368.0,0.055326]
[1731855601515,0.00012926,90369.0,90368.0,0.695326]
[1731855601704,0.00012926,90369.0,90368.0,0.72371042]
[1731855602104,0.00012926,90369.0,90363.0,0.0305]
[1731855602105,0.08489071,90369.0,90363.0,0.0305]
[1731855602317,0.055328,90365.0,90364.0,0.055328]
[1731855602915,0.05533,90361.0,90360.0,0.64]
[1731855603121,0.14009145,90361.0,90360.0,0.055331]
[1731855604024,0.08476145,90361.0,90360.0,0.055331]
[1731855604219,0.14009145,90361.0,90360.0,0.055331]
[1731855604523,0.14009145,90361.0,90360.0,0.08340715]
[1731855604738,0.14009145,90361.0,90360.0,0.02807615]
[1731855605018,0.14009145,90361.0,90336.0,0.055346]
[1731855605019,0.41676145,90361.0,90348.0,0.055338]
[1731855605213,0.39514,90368.0,90348.0,0.055337]
[1731855605214,0.055338,90349.0,90348.0,0.055337]
[1731855605812,0.18666512,90349.0,90348.0,0.055337]
[1731855606016,0.055338,90349.0,90348.0,0.055337]
[1731855606214,0.08476145,90351.0,90341.0,0.64]
[1731855606519,0.2160762,90351.0,90350.0,0.055337]
[1731855606828,0.08476145,90351.0,90350.0,0.055337]
[1731855607821,0.13131475,90355.0,90350.0,0.055337]
[1731855608129,0.13131475,90357.0,90356.0,0.055333]
[1731855608425,0.13131475,90360.0,90358.0,0.055332]
[1731855608822,0.08476145,90366.0,90358.0,0.055332]
[1731855608823,0.13131475,90361.0,90358.0,0.055332]
[1731855609026,0.44556145,90359.0,90358.0,0.055332]
[1731855609222,0.6322082,90359.0,90358.0,0.055332]
[1731855609422,0.50089345,90359.0,90358.0,0.055332]
[1731855610218,0.63226133,90359.0,90358.0,0.055332]
[1731855611154,0.055336,90353.0,90352.0,0.695335]
[1731855611313,0.14009745,90353.0,90352.0,0.055335]
[1731855612434,0.08476145,90353.0,90352.0,0.055335]
[1731855613523,0.055338,90349.0,90348.0,0.055337]
[1731855613723,0.055338,90349.0,90348.0,0.08429202]
[1731855613920,0.08476145,90353.0,90352.0,0.055336]
[1731855614327,0.14009645,90353.0,90352.0,0.055336]
[1731855615725,0.14009645,90353.0,90348.0,0.66895502]
[1731855615925,0.14009645,90353.0,90348.0,0.02895502]
[1731855616122,0.14009645,90353.0,90352.0,0.055336]
[1731855616618,0.27142114,90353.0,90352.0,0.055336]
[1731855617131,0.14009645,90353.0,90352.0,0.055336]
[1731855619132,0.08476145,90353.0,90352.0,0.055336]
[1731855620331,0.36224,90359.0,90358.0,0.055332]
[1731855620542,0.3608,90359.0,90358.0,0.055332]
[1731855621047,0.13138193,90361.0,90359.0,0.055332]
[1731855621226,0.13138193,90363.0,90360.0,0.3608]
[1731855621531,0.13138193,90366.0,90364.0,0.055328]
[1731855621728,0.13138193,90368.0,90360.0,0.3608]
[1731855621934,0.13138193,90368.0,90366.0,0.055327]
[1731855622228,0.13138193,90376.0,90368.0,0.055326]
[1731855622531,0.13138193,90377.0,90368.0,0.055326]
[1731855623134,0.13138193,90380.0,90368.0,0.387286]
[1731855623327,0.13138193,90382.0,90368.0,0.3976657]
[1731855623528,0.13138193,90384.0,90383.0,0.055317]
[1731855624124,0.13138193,90386.0,90379.0,0.0317]
[1731855624326,0.13138193,90386.0,90384.0,0.055316]
[1731855624530,0.3608,90387.0,90384.0,0.055316]
[1731855624531,0.0001401,90385.0,90384.0,0.055316]
[1731855626531,0.0001401,90385.0,90384.0,0.08432674]
[1731855636135,1e-08,90385.0,90384.0,1.05624674]
[1731855636833,0.3608,90403.0,90384.0,1.0666245]
[1731855637033,0.3608,90403.0,90402.0,0.055305]
[1731855637834,0.3609251,90403.0,90402.0,0.055305]
[1731855640347,0.3609251,90403.0,90402.0,0.08358481]
[1731855641160,0.3609251,90403.0,90402.0,0.055305]
[1731855643338,0.4162301,90403.0,90402.0,0.055305]
[1731855643847,0.4162301,90403.0,90388.0,0.3608]
[1731855644047,0.088505,90402.0,90400.0,0.055306]
[1731855644247,0.088505,90402.0,90388.0,0.38923568]
[1731855644450,0.088505,90402.0,90400.0,0.055306]
[1731855645047,0.0332,90402.0,90401.0,0.055306]
[1731855645251,0.13138193,90411.0,90405.0,0.055303]
[1731855645454,0.16198193,90414.0,90405.0,0.416103]
[1731855645643,0.0306,90414.0,90405.0,0.416103]
[1731855646357,0.00180294,90406.0,90405.0,0.416103]
[1731855651155,0.13315751,90406.0,90405.0,0.416103]
[1731855651454,0.00180294,90406.0,90405.0,0.416103]
[1731855652148,0.00014333,90406.0,90405.0,1.056103]
[1731855655851,0.00014333,90406.0,90405.0,0.695303]
[1731855656174,0.13135457,90409.0,90408.0,0.055302]
[1731855657055,0.13148683,90409.0,90408.0,0.055302]
[1731855660063,0.00013226,90409.0,90408.0,0.055302]
[1731855660856,0.13166115,90409.0,90406.0,0.2500872]
[1731855661059,0.13152889,90408.0,90407.0,0.055302]
[1731855662146,0.00013226,90409.0,90408.0,0.055302]
[1731855662350,0.16396633,90414.0,90412.0,0.055299]
[1731855662545,0.64437916,90420.0,90406.0,0.2500872]
[1731855662546,0.19737771,90419.0,90406.0,0.2500872]
[1731855662747,0.13159634,90408.0,90407.0,0.055302]
[1731855662956,0.06082035,90409.0,90407.0,0.08476145]
[1731855663157,0.16449496,90419.0,90418.0,0.055295]
[1731855663360,0.16449496,90422.0,90418.0,0.3608]
[1731855663560,0.19737771,90427.0,90419.0,0.0314]
[1731855663561,0.16449496,90427.0,90419.0,0.0314]
[1731855663767,0.16448409,90427.0,90426.0,0.055291]
[1731855663963,0.16448409,90428.0,90427.0,0.05529]
[1731855664159,0.16448409,90428.0,90421.0,0.055294]
[1731855664160,0.16448409,90429.0,90428.0,0.055289]
[1731855664353,0.16460792,90429.0,90428.0,0.055289]
[1731855666255,0.16460792,90429.0,90428.0,0.08318334]
[1731855666457,0.00012383,90429.0,90428.0,0.08318334]
[1731855667067,0.05390796,90429.0,90428.0,0.08318334]
[1731855667758,0.16454016,90429.0,90428.0,0.13914508]
[1731855667965,0.05541283,90429.0,90428.0,0.05596174]
[1731855668160,0.10919655,90429.0,90428.0,0.05596174]
[1731855668355,0.13999655,90429.0,90428.0,0.05596174]
[1731855669866,0.13999655,90429.0,90428.0,0.11125074]
[1731855673765,0.13999655,90429.0,90428.0,0.00022338]
[1731855673963,0.08621283,90429.0,90425.0,0.02858428]
[1731855674176,0.08621283,90429.0,90418.0,0.02213228]
[1731855674177,0.08621283,90429.0,90428.0,0.055289]
[1731855675251,0.08621283,90429.0,90418.0,0.02213228]
[1731855675252,0.055292,90424.0,90423.0,0.055291]
[1731855675667,0.0312,90428.0,90427.0,0.05529]
[1731855676263,0.086489,90428.0,90427.0,0.05529]
[1731855679466,0.055294,90423.0,90422.0,0.055292]
[1731855679666,0.055297,90418.0,90417.0,0.08431034]
[1731855679872,0.055297,90418.0,90417.0,0.055295]
[1731855680166,0.3608,90420.0,90413.0,0.64]
[1731855680369,0.14005945,90414.0,90413.0,0.64]
[1731855680669,0.0553,90410.0,90409.0,0.00165895]
[1731855680970,0.4161,90410.0,90409.0,0.05695995]
[1731855688365,0.3608,90410.0,90409.0,0.05695995]
[1731855688565,0.09464,90419.0,90409.0,0.00165895]
[1731855688566,0.25902908,90419.0,90409.0,0.00165895]
[1731855688876,0.25902908,90419.0,90399.0,0.0332]
[1731855688877,0.1323765,90388.0,90350.0,0.52869634]
[1731855689081,0.1323765,90388.0,90334.0,0.02213731]
[1731855689082,0.055331,90361.0,90334.0,0.02213731]
[1731855689379,0.3608,90349.0,90348.0,0.055338]
[1731855689668,0.2608,90349.0,90348.0,0.14009945]
[1731855689859,0.2608,90349.0,90348.0,1.64017836]
[1731855690055,8.885e-05,90350.0,90348.0,1.64017836]
[1731855690775,8.885e-05,90350.0,90349.0,0.01038159]
[1731855690974,0.3608,90363.0,90349.0,0.01038159]
[1731855690975,0.3608,90363.0,90349.0,0.34242159]
[1731855691268,0.3608,90363.0,90362.0,0.05533]
[1731855691660,0.3608,90363.0,90362.0,1.55533]
[1731855692075,0.36090718,90363.0,90362.0,1.55533]
[1731855694869,0.36090718,90363.0,90362.0,1.58397359]
[1731855705784,0.36090718,90363.0,90362.0,1.41788375]
[1731855706181,0.26090718,90363.0,90362.0,1.41788375]
[1731855706485,0.00010718,90363.0,90362.0,1.41788375]
[1731855706880,0.00010718,90363.0,90362.0,1.47321375]
[1731855711381,0.00010718,90363.0,90362.0,1.56769375]
[1731855712484,0.00010718,90363.0,90362.0,1.47321375]
[1731855712676,0.00010718,90363.0,90362.0,1.56769375]
[1731855717487,0.16442117,90363.0,90362.0,1.56769375]
[1731855717896,0.00010718,90363.0,90362.0,1.56769375]
[1731855719089,0.18969577,90363.0,90362.0,0.17845359]
[1731855719285,0.05392708,90363.0,90362.0,0.17845359]
[1731855719485,0.00010718,90363.0,90362.0,0.17845359]
[1731855719787,0.18972577,90363.0,90362.0,0.17845359]
[1731855719981,0.05392708,90363.0,90362.0,1.67845359]
[1731855720179,0.00010718,90363.0,90362.0,1.67845359]
[1731855720383,0.19785541,90363.0,90362.0,1.67845359]
[1731855721093,0.05392708,90363.0,90362.0,1.67845359]
[1731855721294,0.00010718,90363.0,90362.0,1.67845359]
[1731855721593,0.19785541,90363.0,90362.0,1.67845359]
[1731855722587,0.25167531,90363.0,90362.0,1.67845359]
[1731855724191,0.25167512,90363.0,90362.0,1.67845359]
[1731855724495,0.25176923,90363.0,90362.0,1.67845359]
[1731855725011,0.25176923,90363.0,90362.0,0.02864359]
[1731855725290,0.055338,90349.0,90338.0,0.055344]
[1731855725593,0.70684098,90349.0,90348.0,0.03457263]
[1731855725788,0.70684098,90349.0,90348.0,7.891e-05]
[1731855725989,1.13966899,90349.0,90348.0,7.891e-05]
[1731855726192,1.13966899,90349.0,90341.0,0.03347017]
[1731855726193,0.055341,90344.0,90341.0,0.03347017]
[1731855726491,0.16652206,90344.0,90341.0,0.03347017]
[1731855726983,0.23092206,90344.0,90341.0,0.03347017]
[1731855727394,0.17533153,90344.0,90341.0,0.08881217]
[1731855728086,0.17533153,90344.0,90341.0,0.03347017]
[1731855728284,0.05535,90329.0,90328.0,0.00013894]
[1731855728590,0.50096894,90329.0,90328.0,0.00013894]
[1731855729090,0.63243768,90329.0,90328.0,0.00013894]
[1731855729297,0.50096894,90329.0,90328.0,0.00013894]
[1731855731393,0.41615,90329.0,90328.0,0.00013894]
[1731855738188,0.50096894,90329.0,90328.0,0.00013894]
[1731855738384,0.77773894,90329.0,90315.0,0.00166083]
[1731855738597,0.416158,90316.0,90315.0,0.00166083]
[1731855738991,0.416158,90316.0,90315.0,1.50166083]
[1731855739496,0.416158,90316.0,90315.0,0.00166083]
[1731855741306,0.055362,90310.0,90309.0,1.5]
[1731855741599,0.055362,90310.0,90306.0,0.03356719]
[1731855741600,0.3322,90310.0,90306.0,0.03356719]
[1731855741798,0.14018194,90307.0,90306.0,0.03356719]
[1731855742203,0.47238194,90307.0,90300.0,0.10010368]
[1731855742389,0.055373,90291.0,90273.0,0.3608]
[1731855742704,0.055373,90291.0,90275.0,0.055383]
[1731855742705,0.05538,90280.0,90275.0,0.055383]
[1731855742900,0.05538,90280.0,90276.0,1.5]
[1731855743102,0.05538,90280.0,90276.0,1.555382]
[1731855743291,0.05538,90280.0,90277.0,0.055382]
[1731855743900,0.3608,90283.0,90276.0,1.5]
[1731855744101,0.3618,90291.0,90285.0,0.055377]
[1731855744803,0.3618,90291.0,90287.0,0.055375]
[1731855745206,0.3608,90291.0,90287.0,0.055375]
[1731855746009,0.055374,90290.0,90287.0,0.055375]
[1731855746397,0.3608,90291.0,90288.0,0.055375]
[1731855747099,0.08481894,90290.0,90288.0,0.055375]
[1731855747410,0.08481894,90290.0,90283.0,0.03377592]
[1731855747705,0.055376,90287.0,90282.0,0.055378]
[1731855747910,0.3608,90291.0,90285.0,0.055377]
[1731855749008,0.3608,90291.0,90278.0,0.06510382]
[1731855749009,0.055376,90287.0,90278.0,0.12048482]
[1731855749409,0.055376,90287.0,90278.0,0.06510382]
[1731855749601,0.055377,90285.0,90281.0,0.055379]
[1731855749805,0.055377,90285.0,90282.0,0.055378]
[1731855750308,0.055377,90285.0,90278.0,0.06510382]
[1731855750910,0.055377,90285.0,90278.0,0.03340382]
[1731855751107,0.055377,90285.0,90276.0,1.5]
[1731855751816,0.055377,90285.0,90276.0,1.58962739]
[1731855754909,0.055378,90283.0,90276.0,1.58962739]
[1731855755717,0.3608,90283.0,90276.0,1.53424539]
[1731855756216,0.3608,90283.0,90270.0,0.00166167]
[1731855756217,0.055385,90272.0,90270.0,0.00166167]
[1731855756719,0.055385,90272.0,90270.0,1.50166167]
[1731855757116,0.055385,90272.0,90270.0,0.00166167]
[1731855758107,0.08491303,90271.0,90270.0,0.00166167]
[1731855758420,0.055386,90270.0,90269.0,1.5]
[1731855758619,0.08491303,90271.0,90262.0,0.055391]
[1731855758923,0.08491303,90271.0,90264.0,0.02939868]
[1731855758924,0.3608,90265.0,90264.0,0.02939868]
[1731855759133,0.3608,90265.0,90264.0,1.50013678]
[1731855761240,0.3608,90265.0,90264.0,0.00013678]
[1731855761819,0.69316,90265.0,90264.0,0.00013678]
[1731855762711,0.69316,90265.0,90264.0,1.421e-05]
[1731855763012,1.08752,90265.0,90264.0,1.421e-05]
[1731855763323,0.055399,90249.0,90247.0,0.0554]
[1731855763521,0.055399,90249.0,90247.0,0.08405266]
[1731855763726,0.055399,90249.0,90248.0,1.5]
[1731855766519,0.055399,90249.0,90248.0,1.444138]
[1731855766721,0.055409,90232.0,90231.0,9.193e-05]
[1731855766921,0.055409,90232.0,90217.0,0.02971214]
[1731855766922,0.59518794,90232.0,90217.0,0.02971214]
[1731855767120,0.055423,90211.0,90209.0,0.055423]
[1731855767324,0.44561894,90221.0,90201.0,0.00166286]
[1731855767325,0.055428,90203.0,90201.0,0.00166286]
[1731855768027,0.055428,90203.0,90202.0,0.055428]
[1731855768525,0.055423,90211.0,90208.0,0.055424]
[1731855768922,0.3608,90212.0,90201.0,0.00166286]
[1731855768923,0.3608,90212.0,90211.0,0.055422]
[1731855769123,0.455,90212.0,90211.0,0.055422]
[1731855769723,0.3608,90212.0,90211.0,0.055422]
[1731855770030,0.055413,90226.0,90205.0,0.055426]
[1731855770244,0.055413,90226.0,90206.0,0.08481894]
[1731855770526,0.0942,90220.0,90206.0,0.11751894]
[1731855770730,0.0942,90222.0,90208.0,0.055424]
[1731855770920,0.0942,90222.0,90220.0,0.055417]
[1731855771329,0.0942,90223.0,90220.0,0.055417]
[1731855771525,0.055413,90226.0,90220.0,0.055417]
[1731855771831,0.0942,90224.0,90220.0,0.055417]
[1731855772428,0.0942,90230.0,90214.0,0.08481894]
[1731855772625,0.0942,90238.0,90233.0,0.055409]
[1731855773223,0.3608,90242.0,90233.0,1.555409]
[1731855773427,0.3608,90242.0,90239.0,0.055405]
[1731855773630,0.09586301,90240.0,90239.0,0.055405]
[1731855774126,0.00166301,90240.0,90239.0,0.055405]
[1731855775424,0.3608,90242.0,90241.0,0.055404]
[1731855778736,0.44561894,90242.0,90241.0,0.055404]
[1731855779631,0.3608,90242.0,90241.0,0.055404]
[1731855780037,0.000124,90249.0,90248.0,0.0554]
[1731855781329,0.055523,90249.0,90241.0,0.416204]
[1731855781534,0.055523,90249.0,90241.0,0.3608]
[1731855781734,0.055523,90249.0,90244.0,0.055401]
[1731855781936,0.000124,90249.0,90246.0,0.0554]
[1731855782135,0.000124,90249.0,90241.0,0.3608]
[1731855782336,0.055523,90249.0,90245.0,0.055401]
[1731855782726,0.055523,90249.0,90241.0,0.3608]
[1731855782727,0.000124,90249.0,90241.0,0.3608]
[1731855783041,0.000124,90249.0,90247.0,0.0554]
[1731855784741,0.000124,90249.0,90247.0,0.08477674]
[1731855785123,0.13083427,90277.0,90256.0,0.055395]
[1731855785335,0.00744,90281.0,90267.0,0.055388]
[1731855785336,0.055381,90278.0,90267.0,0.055388]
[1731855785544,0.3608,90281.0,90267.0,0.416188]
[1731855786124,0.00178879,90268.0,90267.0,0.416188]
[1731855788138,0.00178879,90268.0,90267.0,0.44486136]
[1731855789933,0.3608,90282.0,90281.0,0.055379]
[1731855790741,0.055372,90294.0,90291.0,0.055373]
[1731855790941,0.0308,90296.0,90294.0,0.055371]
[1731855791140,8.312e-05,90295.0,90294.0,0.055371]
[1731855792661,8.312e-05,90295.0,90294.0,0.08517671]
[1731855793242,0.36088312,90295.0,90294.0,0.055371]
[1731855793446,8.312e-05,90295.0,90294.0,0.055371]
[1731855797143,8.312e-05,90295.0,90294.0,0.416171]
[1731855797941,8.312e-05,90295.0,90294.0,0.748411]
[1731855798250,0.416155,90322.0,90306.0,0.08481894]
[1731855798432,0.36224,90322.0,90318.0,0.055356]
[1731855798632,0.3608,90322.0,90305.0,0.3608]
[1731855798936,0.055366,90304.0,90299.0,0.055368]
[1731855799345,0.055366,90304.0,90287.0,0.0316]
[1731855799346,0.08481894,90300.0,90287.0,0.0316]
[1731855799536,0.50099094,90293.0,90279.0,0.3608]
[1731855799732,0.50099094,90293.0,90282.0,0.02968742]
[1731855799936,0.416172,90293.0,90282.0,0.02968742]
[1731855800546,0.416172,90293.0,90282.0,0.08506642]
[1731855801141,0.416172,90293.0,90282.0,0.02968742]
[1731855801338,0.510172,90293.0,90282.0,0.02968742]
[1731855801547,0.510172,90293.0,90287.0,0.055376]
[1731855801945,0.510172,90293.0,90288.0,0.055375]
[1731855802447,0.510172,90293.0,90291.0,0.05703424]
[1731855802448,0.3608,90293.0,90291.0,0.05703424]
[1731855803455,0.3608,90293.0,90291.0,0.00166124]
[1731855803456,0.50099094,90293.0,90291.0,0.00166124]
[1731855804752,0.0332,90292.0,90291.0,0.00166124]
[1731855805043,0.055382,90276.0,90275.0,0.055383]
[1731855805438,0.055384,90273.0,90268.0,0.055387]
[1731855805639,0.055389,90265.0,90261.0,0.02976062]
[1731855805839,0.055389,90265.0,90259.0,0.3608]
[1731855806040,0.055389,90265.0,90263.0,0.05539]
[1731855806351,0.055394,90257.0,90254.0,0.00010965]
[1731855806549,0.055395,90256.0,90254.0,0.00010965]
[1731855806848,0.3608,90255.0,90254.0,0.00010965]
[1731855807343,0.4548,90255.0,90254.0,0.00010965]
[1731855807740,0.7872,90255.0,90254.0,0.00010965]
[1731855807944,0.7872,90255.0,90244.0,0.0016614]
[1731855808243,0.50101994,90245.0,90244.0,0.0016614]
[1731855808643,0.44561894,90245.0,90244.0,0.0016614]
[1731855808854,0.29844653,90245.0,90243.0,0.08481894]
[1731855809041,0.36224,90255.0,90244.0,0.055402]
[1731855809242,0.055399,90250.0,90244.0,0.055402]
[1731855809742,0.055399,90249.0,90236.0,0.055407]
[1731855809942,0.055399,90249.0,90239.0,0.055405]
[1731855810146,0.3608,90255.0,90239.0,0.055405]
[1731855810551,0.055402,90245.0,90239.0,0.055405]
[1731855812643,0.094,90248.0,90230.0,1.5]
[1731855812845,0.094,90248.0,90236.0,0.055407]
[1731855813046,0.1494,90248.0,90236.0,0.055407]
[1731855813251,0.1494,90248.0,90230.0,1.5]
[1731855813450,0.1494,90248.0,90239.0,0.055405]
[1731855813765,0.0554,90248.0,90239.0,0.055405]
[1731855813953,0.055396,90254.0,90242.0,0.055403]
[1731855814153,0.094,90253.0,90242.0,0.055403]
[1731855814556,0.094,90252.0,90238.0,0.3608]
[1731855814749,0.094,90252.0,90249.0,0.055399]
[1731855815448,0.3608,90255.0,90239.0,0.0326]
[1731855815951,0.094,90256.0,90239.0,0.06249112]
[1731855816153,0.094,90256.0,90252.0,0.055397]
[1731855816458,0.094,90256.0,90254.0,0.055395]
[1731855816644,0.087791,90263.0,90254.0,0.055395]
[1731855816844,0.094,90262.0,90254.0,0.055395]
[1731855817243,0.149391,90262.0,90252.0,0.001]
[1731855817448,0.055397,90253.0,90252.0,0.001]
[1731855818648,0.094,90256.0,90249.0,0.055399]
[1731855818847,0.094,90256.0,90251.0,0.055398]
[1731855819057,0.094,90257.0,90252.0,0.055397]
[1731855819855,0.094,90258.0,90252.0,0.055397]
[1731855820155,0.094,90258.0,90253.0,0.055396]
[1731855820358,0.094,90258.0,90253.0,1.555396]
[1731855820864,0.094,90258.0,90246.0,0.3608]
[1731855820865,0.055399,90250.0,90246.0,0.3608]
[1731855821451,0.055399,90250.0,90246.0,0.416201]
[1731855821861,0.0554,90248.0,90246.0,0.3608]
[1731855822359,0.12740446,90250.0,90239.0,0.055405]
[1731855822360,0.055402,90244.0,90239.0,0.055405]
[1731855822557,0.12740446,90250.0,90239.0,0.055405]
[1731855822760,0.055402,90244.0,90239.0,0.055405]
[1731855823153,0.055402,90244.0,90240.0,0.055404]
[1731855823552,0.055402,90244.0,90241.0,0.055404]
[1731855823761,0.055405,90240.0,90230.0,1.5]
[1731855824063,0.055405,90240.0,90236.0,0.055406]
[1731855824359,0.055406,90238.0,90236.0,0.055406]
[1731855825266,0.3608,90238.0,90228.0,0.00011223]
[1731855825447,0.055411,90229.0,90228.0,0.00011223]
[1731855827565,0.00012873,90237.0,90228.0,0.00011223]
[1731855827768,0.00012873,90237.0,90234.0,0.055408]
[1731855830260,0.00012873,90237.0,90229.0,0.085411]
[1731855830261,0.055408,90235.0,90229.0,0.085411]
[1731855830453,0.055408,90235.0,90230.0,0.05541]
[1731855830652,0.00012873,90237.0,90229.0,0.03]
[1731855830853,0.00012873,90237.0,90228.0,0.00011223]
[1731855831767,0.055411,90230.0,90228.0,0.00011223]
[1731855831967,0.416211,90230.0,90228.0,0.00011223]
[1731855832356,0.08497905,90229.0,90228.0,0.00011223]
[1731855832853,0.17885905,90229.0,90228.0,0.00011223]
[1731855833061,0.20985905,90229.0,90228.0,0.00011223]
[1731855833363,0.24285905,90229.0,90228.0,0.00011223]
[1731855833579,0.15788,90229.0,90228.0,0.00011223]
[1731855834050,0.49036,90229.0,90228.0,0.00011223]
[1731855834255,0.49036,90229.0,90213.0,1.50166267]
[1731855834455,0.05542,90214.0,90213.0,0.00166267]
[1731855835859,0.055423,90211.0,90207.0,0.055424]
[1731855836065,0.055423,90211.0,90200.0,0.1]
[1731855836066,0.055428,90202.0,90200.0,0.29815455]
[1731855836291,0.08497905,90201.0,90200.0,0.1]
[1731855837463,0.08508254,90201.0,90200.0,0.1]
[1731855837662,0.00010349,90201.0,90200.0,0.1]
[1731855839060,0.03060349,90201.0,90200.0,0.1]
[1731855839466,0.39140349,90201.0,90200.0,0.1]
[1731855845575,0.055441,90181.0,90179.0,1.5]
[1731855846766,0.055443,90178.0,90177.0,0.00166334]
[1731855847076,0.14042205,90178.0,90177.0,0.00166334]
[1731855847477,0.50122205,90178.0,90177.0,0.00166334]
[1731855847878,0.416243,90178.0,90177.0,0.00166334]
[1731855848073,0.3608,90178.0,90177.0,0.05710634]
[1731855850375,0.08497905,90180.0,90179.0,0.055442]
[1731855851681,0.00144,90186.0,90185.0,0.055438]
[1731855851870,0.149354,90192.0,90189.0,0.055436]
[1731855852069,0.149354,90192.0,90180.0,0.031]
[1731855852070,0.08497905,90190.0,90188.0,0.055436]
[1731855852286,0.08497905,90190.0,90189.0,1.5]
[1731855852980,0.14041405,90190.0,90189.0,1.5]
[1731855853570,0.08497905,90190.0,90189.0,1.5]
[1731855853773,0.00010349,90201.0,90196.0,0.055432]
[1731855853975,0.00010349,90201.0,90197.0,0.3608]
[1731855854283,0.00010349,90201.0,90200.0,0.055429]
[1731855856983,0.05542,90215.0,90200.0,0.055429]
[1731855856984,0.08497905,90213.0,90212.0,0.055422]
[1731855857184,0.08664228,90221.0,90220.0,0.055417]
[1731855857385,0.08664228,90221.0,90220.0,0.416217]
[1731855857881,0.0867254,90221.0,90220.0,0.055417]
[1731855858685,0.4475254,90221.0,90213.0,0.088721]
[1731855858886,0.08497905,90214.0,90213.0,0.088721]
[1731855859491,0.08497905,90214.0,90203.0,0.3608]
[1731855859789,0.08497905,90204.0,90202.0,0.119228]
[1731855860679,0.14040605,90204.0,90202.0,0.119228]
[1731855861185,0.44577905,90204.0,90196.0,0.055432]
[1731855861487,0.08497905,90197.0,90196.0,0.055432]
[1731855863780,0.44721905,90204.0,90191.0,0.0306]
[1731855864084,0.08497905,90211.0,90209.0,0.055423]
[1731855864981,0.00144,90213.0,90212.0,0.055422]
[1731855865183,0.00174635,90221.0,90220.0,0.055417]
[1731855865785,0.08497905,90235.0,90220.0,0.055417]
[1731855866087,0.055418,90219.0,90217.0,0.055418]
[1731855866279,0.08497905,90227.0,90213.0,0.1986001]
[1731855866280,0.055419,90217.0,90213.0,0.1986001]
[1731855866483,0.055424,90209.0,90207.0,0.0332]
[1731855866882,0.00012849,90208.0,90207.0,0.0332]
[1731855868792,0.055417,90220.0,90218.0,0.055418]
[1731855869682,0.055418,90218.0,90212.0,0.055421]
[1731855870077,0.055419,90217.0,90212.0,0.055421]
[1731855871194,0.05542,90216.0,90213.0,0.055421]
[1731855872178,0.0001219,90219.0,90213.0,0.055421]
[1731855872386,0.05542,90215.0,90213.0,0.055421]
[1731855873002,0.05542,90215.0,90207.0,0.0332]
[1731855873185,0.055421,90213.0,90212.0,0.055422]